bitfinex/quotes_BTCUSD_20250903
["timestamp","ask_amount","ask_price","bid_price","bid_amount"]
[1756864028745,1.69000853,111130.0,111120.0,0.001]
[1756864028976,1.69100853,111130.0,111120.0,0.001]
[1756864029382,1.71232947,111130.0,111120.0,0.002]
[1756864030373,1.71233055,111130.0,111120.0,0.002]
[1756864036039,1.71861627,111130.0,111120.0,0.002]
[1756864036240,1.71233055,111130.0,111120.0,0.002]
[1756864036451,1.71861573,111130.0,111120.0,0.002]
[1756864037420,1.71233055,111130.0,111120.0,0.002]
[1756864038585,1.7186146,111130.0,111120.0,1e-08]
[1756864039496,1.82584831,111130.0,111120.0,1e-08]
[1756864041353,1.48584831,111130.0,111120.0,1e-08]
[1756864041550,1.82568831,111130.0,111120.0,1e-08]
[1756864042913,1.9176043,111130.0,111120.0,1e-08]
[1756864044164,1.93435882,111130.0,111120.0,1e-08]
[1756864044936,1.59435882,111130.0,111120.0,1e-08]
[1756864045145,1.93435882,111130.0,111120.0,1e-08]
[1756864054655,1.84244283,111130.0,111120.0,1e-08]
[1756864056317,1.86657283,111130.0,111120.0,1e-08]
[1756864058269,1.84353426,111130.0,111120.0,1e-08]
[1756864058716,1.86659961,111130.0,111120.0,1e-08]
[1756864063038,1.86659868,111130.0,111120.0,1e-08]
[1756864063443,1.95851467,111130.0,111120.0,1e-08]
[1756864065421,1.9774643,111130.0,111120.0,1e-08]
[1756864066079,0.1800018,111110.0,111100.0,0.10522119]
[1756864066296,1.12776929,111110.0,111100.0,0.10734119]
[1756864066503,1.12898377,111110.0,111100.0,0.10734119]
[1756864066711,1.15604631,111110.0,111100.0,0.10734119]
[1756864067356,1.18062559,111110.0,111100.0,0.10622119]
[1756864068225,1.19995618,111110.0,111100.0,0.10622119]
[1756864068443,1.22202457,111110.0,111100.0,0.10722119]
[1756864069052,1.22202457,111110.0,111100.0,0.10934119]
[1756864069314,0.56184931,111110.0,111100.0,0.10934119]
[1756864069522,1.19944529,111110.0,111100.0,0.10934119]
[1756864070186,1.06781222,111110.0,111100.0,0.10934119]
[1756864070410,1.21612222,111110.0,111100.0,0.10934119]
[1756864071897,1.06488222,111110.0,111100.0,0.10934119]
[1756864072140,1.21398222,111110.0,111100.0,0.11250119]
[1756864072665,1.17358324,111110.0,111100.0,0.11250119]
[1756864073301,0.70354525,111110.0,111100.0,0.11250119]
[1756864073531,0.83541832,111110.0,111100.0,0.13561119]
[1756864074579,0.36542033,111110.0,111100.0,0.13561119]
[1756864074789,0.83541832,111110.0,111100.0,0.13561119]
[1756864076188,0.68421832,111110.0,111100.0,0.13561119]
[1756864076393,1.19643714,111110.0,111100.0,0.13561119]
[1756864078221,1.04515714,111110.0,111100.0,0.13561119]
[1756864078429,1.19639714,111110.0,111100.0,0.13561119]
[1756864078911,1.19635714,111110.0,111100.0,0.13561119]
[1756864080693,1.13287714,111110.0,111100.0,0.13561119]
[1756864083038,1.13501714,111110.0,111100.0,0.13245119]
[1756864083222,1.45674513,111110.0,111100.0,0.10722119]
[1756864086484,1.45674513,111110.0,111100.0,0.10934119]
[1756864091470,1.45674513,111110.0,111100.0,0.10722119]
[1756864099618,1.24420708,111110.0,111100.0,0.10722119]
[1756864102482,1.24420708,111110.0,111100.0,0.10934119]
[1756864103943,0.81914915,111110.0,111100.0,0.10934119]
[1756864104169,0.66291915,111110.0,111100.0,0.10934119]
[1756864104402,1.23905708,111110.0,111100.0,0.11236119]
[1756864104824,1.23913708,111110.0,111100.0,0.11236119]
[1756864105578,1.08797708,111110.0,111100.0,0.11236119]
[1756864105793,1.23913708,111110.0,111100.0,0.11236119]
[1756864107592,1.23909708,111110.0,111100.0,0.11236119]
[1756864108122,1.23909708,111110.0,111100.0,0.10934119]
[1756864109935,1.24125708,111110.0,111100.0,0.10934119]
[1756864110134,1.24445708,111110.0,111100.0,0.10934119]
[1756864112154,1.24445708,111110.0,111100.0,0.10722119]
[1756864112882,1.24445708,111110.0,111100.0,0.10934119]
[1756864113235,1.23909708,111110.0,111100.0,0.10934119]
[1756864113465,0.99606109,111110.0,111100.0,0.11236119]
[1756864113670,1.14710109,111110.0,111100.0,0.11236119]
[1756864114292,1.14710109,111110.0,111100.0,0.10934119]
[1756864114490,1.14710109,111110.0,111100.0,0.11236119]
[1756864115064,1.14710109,111110.0,111100.0,0.10934119]
[1756864115930,1.14926109,111110.0,111100.0,0.10934119]
[1756864116151,1.15246109,111110.0,111100.0,0.10722119]
[1756864118787,1.00142109,111110.0,111100.0,0.10927119]
[1756864118938,1.15238109,111110.0,111100.0,0.10927119]
[1756864124229,1.15238109,111110.0,111100.0,0.10722119]
[1756864128219,1.15238109,111110.0,111100.0,0.10927119]
[1756864129300,1.15242109,111110.0,111100.0,0.10927119]
[1756864131837,0.72736316,111110.0,111100.0,0.10927119]
[1756864132046,1.15242109,111110.0,111100.0,0.10927119]
[1756864132790,1.15242109,111110.0,111100.0,0.10722119]
[1756864133022,0.57636316,111110.0,111100.0,0.10927119]
[1756864133253,0.36106434,111110.0,111100.0,0.11231119]
[1756864133474,0.21006434,111110.0,111100.0,0.11456141]
[1756864133714,0.21006434,111110.0,111100.0,0.31948941]
[1756864133942,0.21006434,111110.0,111100.0,0.31723919]
[1756864134193,0.003,111110.0,111100.0,0.40915518]
[1756864135111,0.003,111110.0,111100.0,0.43621049]
[1756864135320,0.1830018,111110.0,111100.0,0.43621049]
[1756864137129,0.1830018,111110.0,111100.0,0.70541049]
[1756864139013,0.003,111110.0,111100.0,0.70541049]
[1756864141028,0.003,111110.0,111100.0,0.76885049]
[1756864142153,0.003,111110.0,111100.0,0.74179518]
[1756864143369,0.003,111110.0,111100.0,0.76885049]
[1756864145450,0.1830018,111110.0,111100.0,0.76885049]
[1756864145833,0.003,111110.0,111100.0,0.76885049]
[1756864148197,0.003,111110.0,111100.0,1.19390842]
[1756864150041,0.003,111110.0,111100.0,1.34498842]
[1756864151549,0.003,111110.0,111100.0,1.35418495]
[1756864153369,0.003,111110.0,111100.0,1.69418495]
[1756864153559,0.003,111110.0,111100.0,1.26912702]
[1756864153697,0.003,111110.0,111100.0,1.69418495]
[1756864154954,0.00014071,111130.0,111120.0,0.60504353]
[1756864155157,0.00014071,111130.0,111120.0,0.42318159]
[1756864155363,0.00014071,111130.0,111120.0,0.42535159]
[1756864155576,0.00014071,111130.0,111120.0,0.42835159]
[1756864155724,0.00014071,111130.0,111120.0,0.45540066]
[1756864156379,0.00014071,111130.0,111120.0,0.72160066]
[1756864157001,0.00114071,111130.0,111120.0,0.72260066]
[1756864158205,0.00214071,111130.0,111120.0,0.72260066]
[1756864160924,0.00214071,111130.0,111120.0,1.14765859]
[1756864161548,0.00214071,111130.0,111120.0,1.35948274]
[1756864162367,0.00214071,111130.0,111120.0,1.35932274]
[1756864162570,0.00214071,111130.0,111120.0,1.0408817]
[1756864165188,0.00214071,111130.0,111120.0,1.35932274]
[1756864165589,0.00214071,111130.0,111120.0,1.20820274]
[1756864165801,0.00214071,111130.0,111120.0,1.0378017]
[1756864167113,0.00731071,111130.0,111120.0,0.56615066]
[1756864167342,0.50572115,111130.0,111120.0,0.53716506]
[1756864167768,0.50572115,111130.0,111120.0,0.51011599]
[1756864168852,0.18728011,111130.0,111120.0,0.51011599]
[1756864169074,0.50572115,111130.0,111120.0,0.51011599]
[1756864170103,0.50572115,111130.0,111120.0,0.69010159]
[1756864170308,0.18728011,111130.0,111120.0,0.69010159]
[1756864170749,0.00731071,111130.0,111120.0,0.69010159]
[1756864171280,0.18728011,111130.0,111120.0,0.69010159]
[1756864178974,0.18728011,111130.0,111120.0,1.00854263]
[1756864179345,0.18728011,111130.0,111120.0,1.01061263]
[1756864180250,0.18728011,111130.0,111120.0,0.69217159]
[1756864182741,0.18728011,111130.0,111120.0,0.35911599]
[1756864183102,0.50572115,111130.0,111120.0,0.51003599]
[1756864183803,0.50572115,111130.0,111120.0,0.69002159]
[1756864184229,0.50572115,111130.0,111120.0,0.69209159]
[1756864184444,0.18728011,111130.0,111120.0,0.69209159]
[1756864188667,0.18421011,111130.0,111120.0,0.69209159]
[1756864189517,0.18421011,111130.0,111120.0,0.75553159]
[1756864192374,0.18715011,111130.0,111120.0,0.75553159]
[1756864195633,0.18421011,111130.0,111120.0,0.75553159]
[1756864197520,0.18715011,111130.0,111120.0,0.75553159]
[1756864197965,0.18421011,111130.0,111120.0,0.75553159]
[1756864198591,0.18715011,111130.0,111120.0,0.75346159]
[1756864198939,0.18715011,111130.0,111120.0,0.75553159]
[1756864200930,0.18421011,111130.0,111120.0,0.75553159]
[1756864201153,0.00214071,111130.0,111120.0,0.75553159]
[1756864201374,0.00214071,111130.0,111120.0,1.07712263]
[1756864201847,0.18211011,111130.0,111120.0,1.07712263]
[1756864202086,0.18425011,111130.0,111120.0,0.57554599]
[1756864202302,0.50563115,111130.0,111120.0,0.57347599]
[1756864202524,0.50563115,111130.0,111120.0,0.57554599]
[1756864202711,0.50563115,111130.0,111120.0,0.75553159]
[1756864203894,0.18719011,111130.0,111120.0,0.75553159]
[1756864204567,0.18719011,111130.0,111120.0,0.57347599]
[1756864205037,0.18719011,111130.0,111120.0,0.57554599]
[1756864205248,0.18425011,111130.0,111120.0,0.75553159]
[1756864205467,0.18719011,111130.0,111120.0,0.75553159]
[1756864206082,0.00214071,111130.0,111120.0,0.75868159]
[1756864206653,0.00214071,111130.0,111120.0,1.07712263]
[1756864213721,0.00214071,111130.0,111120.0,1.39556367]
[1756864214020,0.00214071,111130.0,111120.0,1.07712263]
[1756864216230,0.32058175,111130.0,111120.0,0.75868159]
[1756864217502,0.32058175,111130.0,111120.0,0.78573066]
[1756864219446,0.00214071,111130.0,111120.0,0.78573066]
[1756864220512,0.00214071,111130.0,111120.0,0.78581066]
[1756864224484,0.00214071,111130.0,111120.0,1.99486318]
[1756864224685,0.00214071,111130.0,111120.0,2.1001237]
[1756864227207,0.00214071,111130.0,111120.0,2.01916318]
[1756864231682,0.00214071,111130.0,111120.0,2.1001237]
[1756864232102,0.00214071,111130.0,111120.0,1.3895237]
[1756864232333,0.00214071,111130.0,111120.0,2.62477622]
[1756864232554,0.00214071,111130.0,111120.0,2.12035452]
[1756864232555,1e-08,111130.0,111120.0,2.12035452]
[1756864232761,1e-08,111130.0,111120.0,2.52035452]
[1756864232970,1e-08,111130.0,111120.0,2.63369925]
[1756864233820,0.6902925,111180.0,111170.0,0.17990465]
[1756864233963,0.69247947,111180.0,111170.0,0.39643345]
[1756864234188,0.69247947,111180.0,111170.0,0.17990465]
[1756864234376,0.26782695,111180.0,111170.0,0.18215345]
[1756864234601,0.00539697,111180.0,111170.0,0.18215345]
[1756864234796,0.00539697,111180.0,111170.0,0.27406944]
[1756864235023,0.00539697,111180.0,111170.0,0.27282064]
[1756864235222,0.00539697,111180.0,111170.0,0.30198794]
[1756864235423,4.697e-05,111180.0,111170.0,0.30198794]
[1756864236200,0.00218697,111180.0,111170.0,0.30198794]
[1756864236663,0.00318697,111180.0,111170.0,0.30298794]
[1756864237104,0.00104697,111180.0,111170.0,0.30298794]
[1756864238953,0.00104697,111180.0,111170.0,1.01660794]
[1756864239205,0.00104697,111180.0,111170.0,1.02583897]
[1756864239420,0.00104697,111180.0,111170.0,1.45049149]
[1756864239860,0.00104697,111180.0,111170.0,1.79049149]
[1756864240500,0.00104697,111180.0,111170.0,1.81424149]
[1756864241824,0.00104697,111180.0,111170.0,1.37733794]
[1756864242289,0.00104697,111180.0,111170.0,1.38035794]
[1756864242702,0.00104697,111180.0,111170.0,1.38618113]
[1756864242910,0.00611697,111180.0,111170.0,1.36030113]
[1756864243219,0.00611697,111180.0,111170.0,1.36232113]
[1756864243637,0.00104697,111180.0,111170.0,1.42572113]
[1756864243851,0.00297,111190.0,111180.0,0.44504149]
[1756864244062,0.00297,111190.0,111180.0,0.53695748]
[1756864244269,0.00507,111190.0,111180.0,0.53695748]
[1756864245059,0.00507,111190.0,111180.0,0.56399032]
[1756864245262,0.00607,111190.0,111180.0,0.56499032]
[1756864245474,0.00807,111190.0,111180.0,0.56599032]
[1756864246310,0.00807,111190.0,111180.0,0.71683032]
[1756864247487,0.00807,111190.0,111180.0,0.71885032]
[1756864248274,0.0051,111190.0,111180.0,0.56801032]
[1756864248493,0.003,111190.0,111180.0,0.71885032]
[1756864248711,0.003,111190.0,111180.0,0.72187032]
[1756864249818,0.003,111190.0,111180.0,1.16627032]
[1756864251374,0.002,111190.0,111180.0,1.16527032]
[1756864251710,0.00297,111200.0,111190.0,0.17987229]
[1756864251931,0.00343961,111200.0,111190.0,0.42487668]
[1756864252141,0.00553961,111200.0,111190.0,0.42262828]
[1756864253158,0.00553961,111200.0,111190.0,0.48602828]
[1756864253817,0.00553961,111200.0,111190.0,0.48804828]
[1756864254284,0.00653961,111200.0,111190.0,0.48904828]
[1756864255020,0.00653961,111200.0,111190.0,0.48702828]
[1756864255689,0.00653961,111200.0,111190.0,0.75420131]
[1756864256736,0.00146961,111200.0,111190.0,0.75420131]
[1756864257577,0.00146961,111200.0,111190.0,0.75722131]
[1756864258428,0.00146961,111200.0,111190.0,0.36825802]
[1756864258634,0.00146961,111200.0,111190.0,0.51909802]
[1756864259012,0.00146961,111200.0,111190.0,0.36825802]
[1756864259230,0.00146961,111200.0,111190.0,0.51909802]
[1756864260038,0.00146961,111200.0,111190.0,0.36825802]
[1756864260218,0.00146961,111200.0,111190.0,0.51905802]
[1756864260616,0.00146961,111200.0,111190.0,0.51603802]
[1756864260865,0.00653961,111200.0,111190.0,0.51401802]
[1756864261309,0.00356961,111200.0,111190.0,0.51603802]
[1756864261521,0.00146961,111200.0,111190.0,0.51603802]
[1756864261937,0.00146961,111200.0,111190.0,0.55742083]
[1756864262267,0.00356961,111200.0,111190.0,0.55742083]
[1756864262441,0.00146961,111200.0,111190.0,0.55742083]
[1756864262673,0.00356961,111200.0,111190.0,0.40662083]
[1756864262890,0.00356961,111200.0,111190.0,0.55742083]
[1756864263345,0.00653961,111200.0,111190.0,0.40460083]
[1756864263598,0.61104824,111200.0,111190.0,0.40460083]
[1756864263836,0.61104824,111200.0,111190.0,0.55548083]
[1756864264311,0.61104824,111200.0,111190.0,0.51409802]
[1756864264548,0.43119213,111200.0,111190.0,0.51409802]
[1756864264797,0.43119213,111200.0,111190.0,0.77925105]
[1756864265654,0.00653961,111200.0,111190.0,0.77925105]
[1756864267043,0.00653961,111200.0,111190.0,0.78127105]
[1756864267258,0.00146961,111200.0,111190.0,0.78127105]
[1756864267495,0.00146961,111200.0,111190.0,0.78429105]
[1756864268806,0.00146961,111200.0,111190.0,0.78127105]
[1756864269019,0.00146961,111200.0,111190.0,0.78427105]
[1756864270501,0.00146961,111200.0,111190.0,1.22867105]
[1756864271132,0.00146961,111200.0,111190.0,1.22567105]
[1756864271587,0.00146961,111200.0,111190.0,1.22867105]
[1756864274995,0.00146961,111200.0,111190.0,1.65332357]
[1756864275323,0.00146961,111200.0,111190.0,1.22867105]
[1756864275741,0.00146961,111200.0,111190.0,1.59361105]
[1756864275950,0.00146961,111200.0,111190.0,1.30871054]
[1756864276372,1e-08,111200.0,111190.0,1.42964936]
[1756864276585,0.0002,111230.0,111220.0,0.17982377]
[1756864276790,0.00024694,111230.0,111220.0,0.48609976]
[1756864277010,0.00024694,111230.0,111220.0,0.49119976]
[1756864277223,0.00024694,111230.0,111220.0,1.35781362]
[1756864277433,0.00220694,111230.0,111220.0,0.8552211]
[1756864277638,0.00527694,111230.0,111220.0,0.8531211]
[1756864277851,0.00320694,111230.0,111220.0,0.7052611]
[1756864278098,0.00320694,111230.0,111220.0,0.8541611]
[1756864278099,0.00627694,111230.0,111220.0,0.8541611]
[1756864278305,0.00527694,111230.0,111220.0,0.8531611]
[1756864278504,0.00627694,111230.0,111220.0,0.8571611]
[1756864279679,0.00627694,111230.0,111220.0,0.8572011]
[1756864280107,0.00727694,111230.0,111220.0,0.74781939]
[1756864280343,0.00727694,111230.0,111220.0,0.89881939]
[1756864280778,0.00727694,111230.0,111220.0,0.90091939]
[1756864281145,0.00727694,111230.0,111220.0,0.89881939]
[1756864281323,0.00727694,111230.0,111220.0,0.90091939]
[1756864282429,0.00420694,111230.0,111220.0,0.90091939]
[1756864282833,0.00224694,111230.0,111220.0,0.90091939]
[1756864283461,0.00224694,111230.0,111220.0,1.32857191]
[1756864283873,0.00224694,111230.0,111220.0,1.32557191]
[1756864284029,0.00224694,111230.0,111220.0,1.32857191]
[1756864284849,0.00224694,111230.0,111220.0,1.33758693]
[1756864285480,0.00224694,111230.0,111220.0,1.23079837]
[1756864286513,0.00224694,111230.0,111220.0,1.54866233]
[1756864286707,0.00224694,111230.0,111220.0,1.57360233]
[1756864287956,0.00224694,111230.0,111220.0,1.57428233]
[1756864288156,0.00224694,111230.0,111220.0,1.62428233]
[1756864288575,0.00224694,111230.0,111220.0,1.67428233]
[1756864292139,0.00224694,111230.0,111220.0,1.69522115]
[1756864292567,0.00224694,111230.0,111220.0,2.01308511]
[1756864292792,1e-08,111230.0,111220.0,2.01308511]
[1756864293216,1e-08,111230.0,111220.0,2.0937011]
[1756864294521,0.0002,111240.0,111230.0,0.30074642]
[1756864294755,0.0002,111240.0,111230.0,0.52216241]
[1756864294994,0.0002,111240.0,111230.0,1.20999033]
[1756864295510,0.0002,111240.0,111230.0,1.40203205]
[1756864295746,0.0002,111240.0,111230.0,1.55355205]
[1756864295968,0.0012,111240.0,111230.0,1.55655205]
[1756864296524,0.0012,111240.0,111230.0,1.55855205]
[1756864296647,0.0022,111240.0,111230.0,1.55855205]
[1756864296851,0.0022,111240.0,111230.0,1.95855205]
[1756864297058,0.0012,111240.0,111230.0,1.95555205]
[1756864297696,0.0022,111240.0,111230.0,1.96055205]
[1756864297920,0.0012,111240.0,111230.0,1.95855205]
[1756864298119,0.0022,111240.0,111230.0,1.96455205]
[1756864298878,0.0022,111240.0,111230.0,1.64668809]
[1756864300259,0.31806396,111270.0,111260.0,0.43924215]
[1756864300435,0.31806396,111270.0,111260.0,1.18629814]
[1756864300436,0.32031475,111270.0,111260.0,1.18629814]
[1756864300668,0.32031475,111270.0,111260.0,1.03481814]
[1756864300892,0.81792167,111270.0,111260.0,0.85505902]
[1756864301116,0.81792167,111270.0,111260.0,0.79015598]
[1756864301328,0.81792167,111270.0,111260.0,0.91454303]
[1756864301550,0.81792167,111270.0,111240.0,0.27915232]
[1756864301551,0.17977528,111250.0,111240.0,0.27915232]
[1756864301767,0.8176132,111250.0,111240.0,0.06336]
[1756864301982,0.8176132,111250.0,111240.0,0.2148]
[1756864302199,0.8207932,111250.0,111240.0,0.2148]
[1756864303160,0.8217932,111250.0,111240.0,0.2178]
[1756864303443,0.8207932,111250.0,111240.0,0.2148]
[1756864304200,0.8207932,111250.0,111240.0,0.2168]
[1756864304601,0.8207932,111250.0,111240.0,0.06536]
[1756864304807,0.8217932,111250.0,111240.0,0.2188]
[1756864307684,0.8217932,111250.0,111240.0,0.21876]
[1756864309044,0.8217932,111250.0,111240.0,0.48796]
[1756864309932,0.18606528,111250.0,111240.0,0.48796]
[1756864310143,0.8217932,111250.0,111240.0,0.48796]
[1756864311240,0.32415396,111250.0,111240.0,0.75966743]
[1756864311462,0.32097396,111250.0,111240.0,0.76182743]
[1756864311693,0.001,111250.0,111240.0,0.76487743]
[1756864311943,0.31886396,111250.0,111240.0,0.76487743]
[1756864312785,0.001,111250.0,111240.0,0.76487743]
[1756864313210,0.31886396,111250.0,111240.0,0.76487743]
[1756864314044,0.001,111250.0,111240.0,0.76487743]
[1756864314263,0.31886396,111250.0,111240.0,0.76487743]
[1756864314495,0.31886396,111250.0,111240.0,0.42847599]
[1756864314496,0.8217932,111250.0,111240.0,0.42847599]
[1756864314698,0.8217932,111250.0,111240.0,0.75962743]
[1756864314907,0.8217932,111250.0,111240.0,0.42847599]
[1756864315121,0.8217932,111250.0,111240.0,0.57983599]
[1756864316648,0.001,111250.0,111240.0,0.76487743]
[1756864316859,0.31886396,111250.0,111240.0,0.76487743]
[1756864317263,0.32097396,111250.0,111240.0,0.76182743]
[1756864317475,0.50074924,111250.0,111240.0,0.75966743]
[1756864318411,0.50392924,111250.0,111240.0,0.75966743]
[1756864318624,0.50392924,111250.0,111240.0,0.42847599]
[1756864318828,0.32097396,111250.0,111240.0,0.76487743]
[1756864319031,0.31886396,111250.0,111240.0,0.76487743]
[1756864322372,0.001,111250.0,111240.0,1.54927743]
[1756864322934,0.001,111250.0,111240.0,1.60117345]
[1756864323096,0.31886396,111250.0,111240.0,1.60117345]
[1756864323508,0.001,111250.0,111240.0,1.60117345]
[1756864323739,0.31886396,111250.0,111240.0,1.60117345]
[1756864323931,0.001,111250.0,111240.0,1.60117345]
[1756864324472,0.31886396,111250.0,111240.0,1.60117345]
[1756864325422,0.001,111250.0,111240.0,1.60117345]
[1756864325624,0.31886396,111250.0,111240.0,1.60117345]
[1756864326767,0.31886396,111250.0,111240.0,1.44977345]
[1756864326972,0.31997396,111250.0,111240.0,1.12712345]
[1756864327154,0.31997396,111250.0,111240.0,1.12928345]
[1756864327557,0.31997396,111250.0,111240.0,1.13233345]
[1756864329097,0.31786396,111250.0,111240.0,1.13233345]
[1756864331259,0.32000396,111250.0,111240.0,0.97744345]
[1756864331508,0.32000396,111250.0,111240.0,1.12944345]
[1756864331724,0.32303396,111250.0,111240.0,0.78724345]
[1756864331933,0.32303396,111250.0,111240.0,0.76022743]
[1756864333645,0.32000396,111250.0,111240.0,0.76022743]
[1756864334240,0.32000396,111250.0,111240.0,0.76220743]
[1756864334796,0.32000396,111250.0,111240.0,0.76527743]
[1756864335617,0.32000396,111250.0,111240.0,0.76220743]
[1756864336062,0.32000396,111250.0,111240.0,0.61024743]
[1756864336257,0.32000396,111250.0,111240.0,0.76519743]
[1756864337965,0.32089396,111260.0,111250.0,0.17977528]
[1756864338164,0.00214,111260.0,111250.0,0.42573846]
[1756864338338,0.63786792,111260.0,111250.0,0.42349127]
[1756864338545,0.32000396,111260.0,111250.0,0.42349127]
[1756864339169,0.63786792,111260.0,111250.0,0.42349127]
[1756864339391,0.63886792,111260.0,111250.0,0.42449127]
[1756864339816,0.82165704,111260.0,111250.0,0.42449127]
[1756864339975,0.82165704,111260.0,111250.0,0.42549127]
[1756864344696,0.82165704,111260.0,111250.0,0.69469127]
[1756864345792,0.81862704,111260.0,111250.0,0.69667127]
[1756864346950,0.82165704,111260.0,111250.0,0.51491599]
[1756864347158,0.82165704,111260.0,111250.0,0.2712]
[1756864347369,0.82165704,111260.0,111250.0,0.42328]
[1756864347529,0.60979745,111260.0,111250.0,0.42332]
[1756864348137,0.60979745,111260.0,111250.0,0.2712]
[1756864348374,0.60979745,111260.0,111250.0,0.42332]
[1756864348794,0.60979745,111260.0,111250.0,0.42328]
[1756864351036,0.60979745,111260.0,111250.0,0.42324]
[1756864354127,0.60979745,111260.0,111250.0,0.2712]
[1756864354344,0.60979745,111260.0,111250.0,0.4232]
[1756864356515,0.60979745,111260.0,111250.0,0.002]
[1756864356715,0.60979745,111260.0,111250.0,0.154]
[1756864359505,0.18592912,111260.0,111250.0,0.154]
[1756864359707,0.60979745,111260.0,111250.0,0.154]
[1756864365865,0.18289912,111260.0,111250.0,0.15607]
[1756864366081,0.60462745,111260.0,111250.0,0.16124719]
[1756864366285,0.18075912,111260.0,111250.0,0.34102247]
[1756864366490,0.60462745,111260.0,111250.0,0.33877528]
[1756864366889,0.60462745,111260.0,111250.0,0.159]
[1756864367076,0.60462745,111260.0,111250.0,0.16124719]
[1756864367725,0.18075912,111260.0,111250.0,0.16124719]
[1756864368310,0.60462745,111260.0,111250.0,0.34102247]
[1756864368582,0.001,111260.0,111250.0,0.43069127]
[1756864368786,0.001,111260.0,111250.0,0.45516127]
[1756864370461,0.61146297,111260.0,111250.0,0.002]
[1756864370631,0.60974745,111260.0,111250.0,0.15388]
[1756864371151,0.60666745,111260.0,111250.0,0.16112719]
[1756864371352,0.60462745,111260.0,111250.0,0.43032719]
[1756864371561,0.60666745,111260.0,111250.0,0.42808]
[1756864372355,0.60462745,111260.0,111250.0,0.42808]
[1756864372561,0.60666745,111260.0,111250.0,0.42808]
[1756864374549,0.60666745,111260.0,111250.0,0.42515]
[1756864374737,0.60666745,111260.0,111250.0,0.42511]
[1756864375352,0.18075912,111260.0,111250.0,0.60781528]
[1756864375755,0.001,111260.0,111250.0,0.69973127]
[1756864375964,0.18075912,111260.0,111250.0,0.69973127]
[1756864376946,0.18075912,111260.0,111250.0,0.51995599]
[1756864377444,0.18075912,111260.0,111250.0,0.69973127]
[1756864380536,0.18075912,111260.0,111250.0,0.51995599]
[1756864381469,0.61146297,111260.0,111250.0,0.42288]
[1756864381672,0.60974745,111260.0,111250.0,0.42288]
[1756864383459,0.60666745,111260.0,111250.0,0.42495]
[1756864383659,0.18075912,111260.0,111250.0,0.42788]
[1756864383892,0.18075912,111260.0,111250.0,0.60765528]
[1756864384205,0.18075912,111260.0,111250.0,0.69957127]
[1756864385874,0.18279912,111260.0,111250.0,0.51979599]
[1756864386356,0.18279912,111260.0,111250.0,0.36811599]
[1756864386559,0.60666745,111260.0,111250.0,0.51694599]
[1756864386952,0.18279912,111260.0,111250.0,0.51694599]
[1756864387283,0.18279912,111260.0,111250.0,0.51987599]
[1756864387482,0.18075912,111260.0,111250.0,0.51987599]
[1756864387703,0.18075912,111260.0,111250.0,0.69965127]
[1756864389335,0.18075912,111260.0,111250.0,0.76301127]
[1756864390978,0.18270912,111260.0,111250.0,0.58030599]
[1756864391183,0.18270912,111260.0,111250.0,0.58343599]
[1756864393120,0.18270912,111260.0,111250.0,0.42854599]
[1756864393283,0.18270912,111260.0,111250.0,0.58066599]
[1756864393910,0.18270912,111260.0,111250.0,0.58379599]
[1756864394937,0.18075912,111260.0,111250.0,0.49437127]
[1756864396003,0.001,111260.0,111250.0,0.49437127]
[1756864396428,0.18075912,111260.0,111250.0,0.49437127]
[1756864398114,0.001,111260.0,111250.0,0.49437127]
[1756864399754,0.18075912,111260.0,111250.0,0.49437127]
[1756864400235,0.001,111260.0,111250.0,0.9182396]
[1756864401037,0.001,111260.0,111250.0,0.49437127]
[1756864402544,0.18075912,111260.0,111250.0,0.49437127]
[1756864403717,0.001,111260.0,111250.0,0.49437127]
[1756864403963,0.001,111260.0,111250.0,0.76357127]
[1756864409573,0.001,111260.0,111250.0,1.08132109]
[1756864410854,0.18075912,111260.0,111250.0,1.08132109]
[1756864411492,0.18075912,111260.0,111250.0,0.92920109]
[1756864411693,0.50045894,111260.0,111250.0,0.58026599]
[1756864412156,0.50045894,111260.0,111250.0,0.76004127]
[1756864412561,0.50045894,111260.0,111250.0,0.76317127]
[1756864414032,0.31874982,111260.0,111250.0,0.76317127]
[1756864414202,0.001,111260.0,111250.0,0.76317127]
[1756864414403,0.001,111260.0,111250.0,1.08092109]
[1756864414818,0.001,111260.0,111250.0,0.76317127]
[1756864417097,0.001,111260.0,111250.0,1.08092109]
[1756864417814,0.001,111260.0,111250.0,1.76243091]
[1756864418433,0.001,111260.0,111250.0,1.52529708]
[1756864418636,0.001,111260.0,111250.0,1.87006036]
[1756864418843,0.00034079,111270.0,111260.0,0.17975912]
[1756864419044,0.00034079,111270.0,111260.0,0.74666191]
[1756864419220,0.00034079,111270.0,111260.0,1.06415475]
[1756864419470,0.00034079,111270.0,111260.0,0.42865511]
[1756864419673,0.00034079,111270.0,111260.0,0.74640493]
[1756864420278,0.00034079,111270.0,111260.0,0.42865511]
[1756864420482,0.00034079,111270.0,111260.0,0.74640493]
[1756864420904,0.00034079,111270.0,111260.0,0.74840493]
[1756864421108,0.00034079,111270.0,111260.0,1.69887475]
[1756864421309,0.00034079,111270.0,111260.0,1.72588602]
[1756864421908,0.00034079,111270.0,111260.0,1.80650201]
[1756864422536,0.00134079,111270.0,111260.0,1.80850201]
[1756864423388,0.00134079,111270.0,111260.0,1.72788602]
[1756864423799,0.00134079,111270.0,111260.0,1.73701966]
[1756864424792,0.00134079,111270.0,111260.0,2.18141966]
[1756864425422,0.00134079,111270.0,111260.0,2.02945966]
[1756864425601,0.00134079,111270.0,111260.0,1.86402984]
[1756864425821,0.00134079,111270.0,111260.0,1.84046984]
[1756864426022,0.00349079,111270.0,111260.0,1.68818984]
[1756864426229,0.00349079,111270.0,111260.0,1.84046984]
[1756864426426,0.00134079,111270.0,111260.0,1.84046984]
[1756864427587,0.00134079,111270.0,111260.0,1.68818984]
[1756864427787,0.00134079,111270.0,111260.0,1.84046984]
[1756864428066,0.00134079,111270.0,111260.0,2.15821966]
[1756864429640,0.00134079,111270.0,111260.0,2.18173966]
[1756864430047,0.00134079,111270.0,111260.0,1.54624002]
[1756864430267,0.00134079,111270.0,111260.0,2.18173966]
[1756864430719,0.00134079,111270.0,111260.0,1.54624002]
[1756864430937,0.00134079,111270.0,111260.0,2.18173966]
[1756864431874,0.00134079,111270.0,111260.0,1.54624002]
[1756864432092,0.00134079,111270.0,111260.0,2.18173966]
[1756864432574,0.00134079,111270.0,111260.0,2.18165966]
[1756864433503,0.00134079,111270.0,111260.0,2.17252602]
[1756864435892,0.00134079,111270.0,111260.0,2.02914225]
[1756864436013,0.00134079,111270.0,111260.0,1.54616261]
[1756864436240,0.00134079,111270.0,111260.0,2.02914225]
[1756864436457,0.50411357,111270.0,111260.0,0.91188638]
[1756864436666,0.18636375,111270.0,111260.0,0.91188638]
[1756864437089,0.50411357,111270.0,111260.0,1.06448638]
[1756864437609,0.50411357,111270.0,111260.0,0.39212726]